bitfinex-derivatives/quotes_ETHF0:USTF0_20250411
["timestamp","ask_amount","ask_price","bid_price","bid_amount"]
[1744358507518,0.00974121,1538.6,1538.5,1.30072]
[1744358507716,3.2078,1539.1,1539.0,1.30029]
[1744358507920,3.2078,1539.4,1538.7,3.25119]
[1744358508111,3.2078,1539.4,1539.3,1.30004]
[1744358508316,3.2078,1539.5,1539.3,1.29996]
[1744358508515,3.2078,1539.5,1538.8,98.944]
[1744358508714,3.2078,1539.2,1539.1,1.30021]
[1744358508921,3.21754121,1539.3,1539.2,1.30012]
[1744358509219,1.81111,1539.7,1539.6,1.29974]
[1744358509423,3.00049,1540.5,1539.9,1.29952]
[1744358509723,3.2078,1540.0,1539.9,1.29952]
[1744358509923,1.7014,1540.5,1539.9,44.0078]
[1744358510119,3.2078,1540.8,1540.1,3.2078]
[1744358510325,0.00974121,1540.4,1540.3,1.2992]
[1744358511220,1.21e-06,1540.4,1540.3,47.0992]
[1744358511623,1.21e-06,1540.4,1540.3,42.0992]
[1744358511817,5.00000121,1540.4,1540.3,40.8]
[1744358512012,1.62730121,1540.4,1540.3,42.0992]
[1744358512325,6.62730121,1540.4,1540.3,40.8]
[1744358512520,1.62730121,1540.4,1540.3,40.8]
[1744358512720,1.21e-06,1540.4,1540.3,42.0992]
[1744358513225,1.21e-06,1540.4,1540.3,47.0992]
[1744358513424,1.21e-06,1540.4,1540.3,50.307]
[1744358513812,3.2078,1541.1,1540.3,8.2078]
[1744358514012,3.2078,1541.1,1541.0,1.29861]
[1744358514828,4.8351,1541.3,1541.2,1.29844]
[1744358515326,3.2078,1541.3,1541.2,1.29844]
[1744358515522,0.00974121,1541.4,1541.3,1.29835]
[1744358515823,1.21e-06,1541.4,1541.3,12.59335]
[1744358516126,1.21e-06,1541.4,1541.3,20.80115]
[1744358516328,1.21e-06,1541.4,1541.3,20.89670862]
[1744358516530,1.21e-06,1541.4,1541.3,61.69670862]
[1744358517426,3.2078,1542.0,1541.3,61.69670862]
[1744358517427,3.2078,1542.3,1542.2,1.2976]
[1744358517628,3.19468772,1542.3,1542.2,1.2976]
[1744358518129,3.19468772,1542.3,1542.2,42.0976]
[1744358518330,3.19468772,1542.3,1542.2,42.19315862]
[1744358518527,3.2078,1541.8,1540.5,3.2078]
[1744358518828,3.2078,1541.5,1541.4,1.29827]
[1744358519033,1.6088,1541.7,1541.6,1.2981]
[1744358519221,3.2078,1541.7,1541.6,1.2981]
[1744358519530,9.30410202,1541.7,1541.1,0.00974121]
[1744358519722,3.2078,1541.2,1541.1,0.00974121]
[1744358519920,4.50624,1541.2,1541.1,0.00974121]
[1744358520232,3.2078,1541.0,1539.6,3.2078]
[1744358520524,3.2078,1540.2,1540.1,1.29937]
[1744358520921,3.2078,1540.7,1540.2,3.24821]
[1744358521120,3.2078,1540.7,1540.6,1.29894]
[1744358521524,0.00974121,1540.8,1540.7,1.29886]
[1744358521825,0.62172376,1540.8,1540.7,1.29886]
[1744358522030,0.00974121,1540.8,1540.7,1.29886]
[1744358522223,0.62163212,1540.8,1540.7,1.29886]
[1744358522625,1.11782628,1540.8,1540.5,0.00974121]
[1744358522825,3.21754121,1540.8,1540.7,1.29886]
[1744358523024,4.32651983,1540.8,1540.7,1.29886]
[1744358523331,1.25204913,1540.8,1540.7,6.29886]
[1744358523531,0.61391275,1540.8,1540.7,1.29886]
[1744358523736,9.13e-06,1540.8,1540.7,6.29886]
[1744358524036,1.6439,1541.0,1540.9,1.29869]
[1744358524221,2.14119041,1541.0,1540.9,1.29869]
[1744358524834,2.14119041,1541.0,1540.9,42.09869]
[1744358525027,2.14119041,1541.0,1540.9,40.8]
[1744358525227,2.14119041,1541.0,1540.9,42.09869]
[1744358525528,2.14119041,1541.0,1540.9,45.09869]
[1744358525529,4.1e-07,1541.0,1540.9,45.09869]
[1744358525726,1.21e-06,1541.1,1541.0,1.29861]
[1744358525927,1.21e-06,1541.1,1541.0,3.02681]
[1744358526130,1.21e-06,1541.1,1541.0,6.02681]
[1744358526430,1.21e-06,1541.1,1541.0,7.32542]
[1744358526635,3.2078,1541.9,1541.8,1.29793]
[1744358527037,1.6164,1542.0,1541.9,1.29785]
[1744358527531,1.6164,1542.0,1541.9,42.09785]
[1744358527731,6.6164,1542.0,1541.9,40.8]
[1744358527934,1.6164,1542.0,1541.9,42.09785]
[1744358528333,1.6164,1542.0,1541.9,1.29785]
[1744358528735,6.6164,1542.0,1540.7,4.5224]
[1744358528934,3.2078,1541.5,1541.4,1.29827]
[1744358529134,3.2078,1541.9,1541.8,1.29793]
[1744358529433,0.00619726,1542.1,1542.0,1.29776]
[1744358529634,7.26e-06,1542.1,1542.0,1.29776]
[1744358530436,7.26e-06,1542.1,1542.0,105.24376]
[1744358530735,7.26e-06,1542.1,1542.0,106.82556]
[1744358530940,3.2078,1543.2,1543.1,1.29684]
[1744358531130,3.19468772,1543.2,1542.8,3.2078]
[1744358531327,3.8566,1543.6,1543.5,1.2965]
[1744358531526,3.2078,1543.6,1543.5,1.2965]
[1744358531726,8.2078,1543.6,1543.2,11.452]
[1744358531934,1.6368,1543.5,1543.4,1.29653]
[1744358532140,0.00974121,1543.6,1543.5,1.2965]
[1744358532735,3.2078,1544.1,1543.5,103.925]
[1744358532940,1.6368,1544.3,1544.2,1.29592]
[1744358533129,3.2078,1544.4,1544.0,11.452]
[1744358533326,3.2078,1544.4,1544.3,1.29583]
[1744358533633,8.2078,1544.4,1543.0,11.446]
[1744358533837,3.2078,1543.9,1543.8,1.2962]
[1744358534029,3.2078,1544.2,1544.1,1.29592]
[1744358534231,3.3373169,1544.2,1544.1,1.296]
[1744358534426,3.3373169,1544.2,1543.8,13.1751]
[1744358534734,3.2078,1544.0,1543.9,3.02527]
[1744358534935,3.2078,1544.0,1543.8,11.446]
[1744358535136,4.7971,1544.0,1543.8,11.446]
[1744358535342,4.7971,1544.0,1543.8,1.29617]
[1744358535643,3.2078,1544.2,1544.1,1.29597]
[1744358535941,3.2078,1544.2,1543.9,12.74213]
[1744358536240,1.5893,1544.1,1544.0,1.29608]
[1744358536539,1.5893,1544.1,1543.7,0.00974121]
[1744358536734,3.2078,1543.8,1543.7,1.30601121]
[1744358536941,3.2078,1544.0,1543.9,1.29617]
[1744358537136,3.2078,1544.2,1544.1,1.29593]
[1744358537348,3.2078,1544.2,1544.0,12.73808]
[1744358537532,3.2078,1544.2,1544.0,11.442]
[1744358537732,3.2078,1544.2,1544.1,1.296]
[1744358538432,3.2078,1544.2,1544.0,13.5769]
[1744358538835,3.2078,1544.2,1544.0,3.43094]
[1744358539039,3.2078,1544.2,1544.1,1.296]
[1744358539535,3.2231703,1544.2,1544.1,1.296]
[1744358541140,3.2231703,1544.2,1544.0,2.1349]
[1744358541342,3.2231703,1544.2,1544.0,3.43094]
[1744358541529,3.2078,1544.2,1544.1,1.2806297]
[1744358541731,8.80220514,1544.2,1543.9,40.8]
[1744358542034,3.2078,1544.0,1543.9,42.09613]
[1744358542239,3.2078,1544.0,1543.7,0.00974121]
[1744358542537,3.2078,1543.8,1543.7,0.00974121]
[1744358542743,3.2078,1543.8,1543.7,40.80974121]
[1744358542941,3.2078,1543.8,1543.7,42.10607121]
[1744358543143,3.2078,1543.8,1543.7,40.80974121]
[1744358543443,8.2078,1543.8,1543.7,42.10607121]
[1744358543638,3.2078,1543.8,1543.7,42.10607121]
[1744358544033,3.2078,1543.8,1543.7,1.29633]
[1744358544345,3.2078,1544.0,1543.9,1.29617]
[1744358544538,1.63942,1544.0,1543.9,1.29617]
[1744358545139,1.63942,1544.0,1543.9,42.09617]
[1744358546034,1.63942,1544.0,1543.9,47.09617]
[1744358546234,0.00974121,1544.1,1544.0,1.29608]
[1744358546842,2.01954121,1544.1,1544.0,42.09608]
[1744358547646,0.00974121,1544.1,1544.0,42.09608]
[1744358548137,0.00974121,1544.1,1544.0,45.30388]
[1744358548138,1.21e-06,1544.1,1544.0,45.30388]
[1744358548337,1.21e-06,1544.1,1544.0,42.09608]
[1744358548940,3.9e-06,1544.1,1544.0,50.30388]
[1744358549145,3.2078,1544.7,1544.6,1.29558]
[1744358549643,9.89384677,1544.9,1544.8,1.29541]
[1744358549841,8.46868677,1544.9,1544.8,1.29541]
[1744358550040,5.25755677,1544.9,1544.8,42.09541]
[1744358550241,6.77e-06,1544.9,1544.8,61.40521]
[1744358550648,8.22991134,1545.1,1545.0,1.27984913]
[1744358550841,5.33202134,1545.1,1545.0,1.27984913]
[1744358551037,3.36620134,1545.1,1545.0,9.48764913]
[1744358551241,3.2078,1545.7,1545.0,46.22722112]
[1744358551443,3.2078,1545.5,1545.4,1.29491]
[1744358551947,13.2078,1545.5,1545.4,1.29491]
[1744358552249,8.2078,1545.5,1545.4,1.29491]
[1744358552847,13.2078,1545.5,1545.0,40.8]
[1744358553044,3.2078,1545.1,1545.0,42.09524]
[1744358553749,8.22314335,1545.1,1544.7,0.00974121]
[1744358554046,3.2078,1544.8,1544.7,1.2955]
[1744358554450,5.2362,1545.0,1544.9,1.29533]
[1744358554646,8.94644214,1545.0,1544.9,42.09533]
[1744358555154,9.54277741,1545.0,1544.9,42.09533]
[1744358555355,9.54277741,1545.0,1544.8,0.00970905]
[1744358555739,0.01534335,1544.9,1544.8,0.00970905]
[1744358555945,0.61167862,1544.9,1544.8,0.00970905]
[1744358556146,7.47646387,1544.9,1544.8,0.00970905]
[1744358556342,7.47728797,1544.9,1544.8,42.10511905]
[1744358556553,6.51067741,1544.9,1544.8,42.10511905]
[1744358556751,6.93962864,1544.9,1544.8,42.10511905]
[1744358556954,4.30657741,1544.9,1544.8,42.10511905]
[1744358557256,10.27439063,1544.9,1544.3,11.098]
[1744358557463,3.2078,1544.5,1544.4,3.50905]
[1744358557757,3.22314335,1544.5,1544.4,3.50905]
[1744358558058,2.2041,1544.8,1544.6,1.29558]
[1744358558059,3.2078,1544.7,1544.6,1.29558]
[1744358558554,8.4715194,1544.7,1544.6,1.29558]
[1744358558856,3.8070173,1544.7,1544.6,1.29558]
[1744358559057,4.34793675,1544.7,1544.6,1.29558]
[1744358559254,4.77946836,1544.7,1544.6,1.29558]
[1744358559763,8.04286156,1544.7,1544.4,43.0133]
[1744358559951,3.2078,1544.5,1544.4,40.8]
[1744358560255,4.77948384,1544.5,1544.4,42.09575]
[1744358560452,15.69318263,1544.5,1544.4,42.09575]
[1744358561247,15.69318263,1544.5,1544.3,0.00970905]
[1744358561452,0.97246654,1544.4,1544.3,1.30553905]
[1744358561652,3.19254038,1544.4,1544.3,1.30553905]
[1744358561855,7.48665647,1544.4,1544.3,42.10553905]
[1744358562254,7.48665647,1544.4,1544.3,40.80970905]
[1744358562458,7.48665647,1544.4,1544.3,42.10553905]
[1744358563158,6.91476963,1544.4,1544.3,42.10553905]
[1744358563350,11.91476963,1544.4,1544.3,40.80970905]
[1744358563551,11.91477021,1544.4,1544.3,0.00970905]
[1744358563758,11.91477021,1544.4,1544.3,1.30553905]
[1744358564260,10.0253742,1544.4,1543.8,0.56058]
[1744358564454,3.2078,1544.0,1543.8,0.56058]
[1744358564661,3.2078,1544.0,1543.9,1.29617]
[1744358564961,4.08290205,1544.0,1543.9,1.29617]
[1744358565162,9.64041455,1544.0,1543.8,1.85679]
[1744358565357,0.87510205,1543.9,1543.8,1.85679]
[1744358565654,0.09448455,1543.9,1543.8,1.85679]
[1744358565958,4.55e-06,1543.9,1543.8,1.85679]
[1744358567362,5.00000455,1543.9,1543.8,0.56058]
[1744358567861,5.00000455,1543.9,1543.4,1.29654]
[1744358568058,3.2078,1543.5,1543.4,1.29654]
[1744358568558,3.2078,1543.7,1543.6,1.29642]
[1744358569953,3.2078,1543.7,1543.5,1.30614905]
[1744358570149,3.2078,1543.7,1543.6,1.29642]
[1744358571565,3.2078,1543.7,1543.6,42.09642]
[1744358571762,3.2078,1543.9,1543.8,1.29625]
[1744358573762,3.21750905,1544.1,1544.0,1.29608]
[1744358573954,0.00970905,1544.1,1544.0,1.29608]
[1744358574254,3.20780905,1544.1,1543.6,44.04098]
[1744358574457,3.20780905,1544.1,1544.0,1.29608]
[1744358574657,9.05e-06,1544.1,1544.0,1.29608]
[1744358574858,9.05e-06,1544.1,1544.0,16.74108]
[1744358575065,9.05e-06,1544.1,1544.0,19.00088]
[1744358575262,9.05e-06,1544.1,1544.0,14.00088]
[1744358575675,3.20780905,1544.1,1544.0,11.74108]
[1744358575965,9.05e-06,1544.1,1544.0,11.74108]
[1744358576153,9.05e-06,1544.1,1544.0,14.00088]
[1744358576352,9.05e-06,1544.1,1544.0,1.29608]
[1744358576553,9.05e-06,1544.1,1543.8,1.29621]
[1744358576554,8.20780905,1544.1,1543.8,1.29621]
[1744358576866,3.2078,1543.9,1543.8,1.29621]
[1744358577159,3.2078,1543.9,1543.6,40.8]
[1744358577565,3.2078,1543.7,1543.6,42.09635]
[1744358577766,3.70884375,1543.7,1543.5,0.00970905]
[1744358577971,3.2078,1543.7,1543.6,1.29642]
[1744358578163,3.70886337,1543.7,1543.6,1.29642]
[1744358578465,3.75838111,1543.7,1543.6,42.09642]
[1744358578769,3.2078,1543.9,1543.5,13.69586905]
[1744358579073,4.50415,1543.7,1543.5,0.00970905]
[1744358579263,4.50415,1543.7,1543.6,40.8]
[1744358579461,10.00478047,1543.7,1543.6,40.8]
[1744358579659,10.55530897,1543.7,1543.6,40.8]
[1744358579860,4.25897897,1543.7,1543.6,40.8]
[1744358580066,5.55530897,1543.7,1543.6,40.8]
[1744358580266,10.55530897,1543.7,1543.6,40.8]
[1744358580464,5.55530897,1543.7,1543.6,40.8]
[1744358580665,0.5505285,1543.7,1543.6,42.09642]
[1744358580964,3.20780905,1544.1,1544.0,1.29608]
[1744358581159,9.05e-06,1544.1,1544.0,1.29608]
[1744358581561,3.75884521,1544.1,1543.8,2.1543]
[1744358581756,2.3668,1544.0,1543.8,2.1543]
[1744358581962,2.3668,1544.0,1543.9,1.29617]
[1744358582167,5.5746,1544.0,1543.8,1.60299161]
[1744358582364,0.55104521,1544.1,1543.8,9.84358161]
[1744358582568,9.05e-06,1544.1,1544.0,1.29608]
[1744358582764,9.05e-06,1544.1,1544.0,11.43508]
[1744358583072,0.56313407,1544.1,1544.0,11.43508]
[1744358583663,5.57446693,1544.1,1544.0,11.43508]
[1744358583864,5.01134191,1544.1,1543.9,1.29612]
[1744358584058,3.77080637,1544.0,1543.8,1.29621]
[1744358584265,0.56300637,1543.9,1543.8,1.29621]
[1744358584469,5.4568,1544.0,1543.9,1.29617]
[1744358584766,3.77100735,1544.0,1543.9,1.29617]
[1744358585165,4.3231675,1544.0,1543.8,10.139]
[1744358585466,0.56320735,1543.9,1543.6,40.8]
[1744358585664,4.50413,1543.7,1543.6,40.8]
[1744358585866,5.61965419,1543.7,1543.5,0.00970905]
[1744358586073,2.81228404,1543.6,1543.5,0.00970905]
[1744358586267,1.29654,1543.5,1543.1,1.29678]
[1744358586472,6.02008404,1543.4,1543.0,10.139]
[1744358586673,3.2078,1543.6,1543.1,2.1512]
[1744358586874,0.56320925,1543.5,1543.4,1.29659]
[1744358587173,0.56320925,1543.5,1543.3,2.1512]
[1744358587366,6.14238802,1543.4,1543.2,40.80970905]
[1744358587571,0.56352269,1543.3,1543.2,42.96090905]
[1744358587866,0.56352269,1543.3,1543.2,44.25765905]
[1744358588062,4.50424,1543.6,1543.2,49.25759905]
[1744358588267,2.92356223,1543.5,1543.2,42.96090905]
[1744358588467,3.76036223,1543.4,1543.2,42.96090905]
[1744358588665,1.29667,1543.3,1543.2,0.00970905]
[1744358588964,3.66767,1543.3,1543.2,0.00970905]
[1744358589166,8.66767,1543.3,1543.2,0.00970905]
[1744358589465,9.22023223,1543.3,1543.2,0.00970905]
[1744358589770,4.22023223,1543.3,1543.2,0.00970905]
[1744358589968,3.24189,1543.2,1542.3,0.648]
[1744358590168,3.2078,1542.6,1542.3,12.3749]
[1744358590369,3.2078,1542.4,1541.9,3.9012]
[1744358590565,3.2078,1542.7,1542.6,1.29725]
[1744358591073,3.2078,1542.7,1542.5,10.14]
[1744358591373,4.50502,1542.7,1542.5,10.14970905]
[1744358591564,2.264,1542.6,1542.5,10.14970905]
[1744358591766,3.2078,1542.7,1542.5,10.14970905]
[1744358591965,3.2078,1542.7,1542.6,1.29726]
[1744358592161,1.29726,1542.6,1542.5,0.00970905]
[1744358592362,1.29721,1542.7,1542.5,0.00970905]
[1744358592672,2.90977063,1544.9,1543.5,3.8558]
[1744358592972,2.89665835,1544.8,1544.7,3.2078]
[1744358593168,5.93831904,1544.8,1544.4,1.29571]
[1744358593373,5.93831904,1544.8,1544.6,1.29558]
[1744358593374,2.89665835,1544.7,1544.6,1.29558]
[1744358593568,2.9063674,1544.7,1544.5,4.50343]
[1744358593768,3.44797739,1544.6,1544.5,3.2078]
[1744358593968,3.44797739,1544.6,1544.5,5.4155]
[1744358594579,2.89665835,1544.6,1544.5,5.4155]
[1744358594871,7.89665835,1544.6,1544.4,0.00970905]
[1744358595077,5.07585835,1544.5,1544.4,3.21750905]
[1744358595371,5.07585835,1544.5,1544.0,2.2077]
[1744358595372,2.1792,1544.5,1543.8,3.2078]
[1744358595570,3.2078,1544.0,1543.4,3.2078]
[1744358595773,2.2512,1543.9,1543.5,2.2409]
[1744358595970,2.2512,1543.9,1543.6,40.8]
[1744358596675,2.26090905,1543.9,1543.8,1.29625]
[1744358597375,0.00970905,1543.9,1543.8,6.29625]
[1744358597578,2.2512,1544.3,1544.2,1.29592]
[1744358597775,2.2512,1544.3,1544.1,3.2078]
[1744358597977,3.2078,1544.5,1544.1,3.2078]
[1744358598169,3.2078,1544.5,1544.2,2.2409]
[1744358598364,2.2512,1544.4,1544.3,1.29579]
[1744358598570,3.2078,1545.7,1544.3,3.2078]
[1744358598769,105.5960383,1547.6,1547.5,1.29315]
[1744358598975,104.2474383,1547.6,1547.5,4.50095]
[1744358599177,107.4552383,1547.6,1547.5,45.30095]
[1744358599372,112.4552383,1547.6,1547.5,44.0078]
[1744358599673,214.87472689,1547.6,1546.1,3.2078]
[1744358599877,5.78606,1547.5,1546.5,3.2078]
[1744358600066,9.6562,1547.5,1546.7,3.2078]
[1744358600267,2.4861,1547.5,1547.0,3.2078]
[1744358600471,2.4861,1547.5,1547.1,3.2078]
[1744358600667,2.4861,1547.5,1547.4,1.29324]
[1744358600972,9.05e-06,1547.5,1547.4,1.29324]
[1744358601168,9.05e-06,1547.5,1547.4,3.75324]
[1744358601372,9.05e-06,1547.5,1547.4,4.69681348]
[1744358601577,114.5924379,1547.9,1547.8,1.2929]
[1744358601768,110.3921879,1547.9,1547.8,5.44427348]
[1744358601974,108.0897863,1547.9,1547.8,5.44427348]
[1744358602176,3.2078,1548.5,1547.9,1.29282]
[1744358602476,3.2078,1548.3,1547.9,5.7534]
[1744358602670,3.2078,1548.1,1548.0,0.00970905]
[1744358603076,8.2078,1548.1,1548.0,0.00970905]
[1744358604675,0.00970905,1548.4,1548.0,0.00970905]
[1744358604976,3.2078,1548.3,1548.0,0.00970905]
[1744358605177,4.50045,1548.1,1548.0,0.00970905]
[1744358605379,3.2078,1548.1,1547.2,3.2078]
[1744358605683,3.85420001,1548.1,1547.4,3.2078]
[1744358605985,4.50032,1548.3,1547.7,1.29298]
[1744358606284,4.50032,1548.3,1547.8,3.2078]
[1744358606684,2.526,1548.2,1547.8,3.21750905]
[1744358607174,0.00970905,1548.4,1547.9,2.5285]
[1744358607378,1.29261,1548.2,1547.8,3.21750905]
[1744358607573,3.2078,1548.0,1547.8,0.00970905]
[1744358607781,3.80202,1547.9,1547.8,0.00970905]
[1744358607980,3.2078,1548.2,1547.8,0.00970905]
[1744358608176,1.29269,1548.1,1547.8,0.00970905]
[1744358608377,2.5092,1548.1,1547.8,0.00970905]
[1744358608681,4.50059,1548.0,1547.8,0.00970905]
[1744358608881,5.717,1548.0,1547.8,0.00970905]
[1744358609069,1.29282,1547.9,1547.8,0.00970905]
[1744358609274,3.81718997,1547.9,1547.8,9.05e-06]
[1744358609478,1.2934,1547.3,1546.8,5.6379]
[1744358609676,5.73216997,1547.9,1547.1,3.2078]
[1744358609878,0.01516997,1547.9,1547.5,3.2078]
[1744358610072,0.01516997,1547.9,1547.8,3.2078]
[1744358610471,0.01516997,1547.9,1547.8,3.21750905]
[1744358610781,0.01516997,1547.9,1547.8,44.0078]
[1744358611181,9.51578997,1547.9,1547.8,40.8]
[1744358611389,1.2929,1547.8,1547.7,0.0065387]
[1744358611684,3.6289,1547.8,1547.7,0.0065387]
[1744358611887,8.65934887,1547.8,1547.7,0.0065387]
[1744358612185,2.36644887,1547.8,1547.7,0.0065387]
[1744358613081,3.65934887,1547.8,1547.7,0.0065387]
[1744358613278,3.65934887,1547.8,1547.0,0.6464]
[1744358613279,1.29328,1547.4,1546.9,3.66551]
[1744358613579,2.36644887,1547.8,1547.5,1.29311]
[1744358613882,0.03044887,1547.7,1547.5,0.00970905]
[1744358614383,2.36824887,1547.7,1547.5,3.2078]
[1744358614984,0.03044887,1547.6,1547.5,3.2078]
[1744358615180,1.32351887,1547.6,1547.5,40.8]
[1744358615381,0.03044887,1547.6,1547.5,40.8]
[1744358615785,8.23824887,1547.6,1547.0,4.50135]
[1744358615980,0.03044887,1547.3,1547.0,4.51105905]
[1744358616287,1.29343,1547.2,1546.9,2.3548]
[1744358616486,1.29345,1547.2,1546.9,2.3548]
[1744358616683,1.29349,1547.1,1546.9,2.3548]
[1744358616885,3.21750905,1547.2,1546.9,40.8]
[1744358617187,0.00970905,1547.2,1547.0,1.29356]
[1744358617491,1.30311905,1547.2,1546.9,4.5014]
[1744358617680,1.30311905,1547.2,1547.0,40.8]
[1744358617881,4.50129,1547.1,1547.0,40.8]
[1744358618284,1.29357,1547.0,1546.7,2.5583]
[1744358618488,1.29368,1546.9,1546.7,0.00970905]
[1744358618887,3.2078,1547.1,1546.7,0.00970905]
[1744358619081,3.2078,1547.1,1546.6,3.2078]
[1744358619290,1.29361,1547.0,1546.6,3.21750905]
[1744358619480,1.29369,1546.9,1546.6,4.51135905]
[1744358619791,1.29377,1546.8,1546.6,3.21750905]
[1744358619986,2.5374,1546.7,1546.6,3.21750905]
[1744358620292,1.29356,1547.1,1546.7,1.2938]
[1744358620489,3.83101,1547.0,1546.7,2.5518]
[1744358620789,3.2078,1546.8,1546.0,3.2078]
[1744358620987,1.29402,1546.5,1546.2,1.29419]
[1744358621192,1.29411,1546.4,1546.1,4.5021]
[1744358621389,2.5374,1546.3,1546.1,0.00970905]
[1744358621586,2.5374,1546.3,1546.2,1.29424]
[1744358621787,0.00970905,1546.4,1546.2,3.2078]
[1744358622094,1.29361,1547.0,1546.7,1.29378]
[1744358622390,3.2078,1547.5,1546.9,4.5014]
[1744358622588,1.29318,1547.5,1547.1,3.2078]
[1744358622780,1.2934,1547.2,1546.8,4.06627257]
[1744358622986,3.2078,1547.5,1546.8,4.06627257]
[1744358623187,0.00970905,1547.2,1547.1,1.29349]
[1744358623383,0.00970905,1547.2,1547.1,3.2078]
[1744358623579,0.00970905,1547.2,1546.9,5.5522]
[1744358623781,0.00970905,1547.2,1546.8,0.00970905]
[1744358623782,1.29365,1546.9,1546.8,0.00970905]
[1744358624186,5.0,1546.9,1546.4,3.2078]
[1744358624395,5.762,1546.8,1546.2,3.2078]
[1744358624694,1.29397,1546.6,1546.3,0.86434915]
[1744358624993,3.2078,1546.6,1546.2,44.01750905]
[1744358625192,2.5542,1546.5,1546.2,46.3522]
[1744358625382,2.5542,1546.5,1546.2,43.15410905]
[1744358625582,2.5542,1546.5,1546.2,43.1444]
[1744358625789,1.29416,1546.3,1546.2,40.8]
[1744358626096,2.5542,1546.5,1546.4,1.29407]
[1744358626290,2.5542,1546.5,1546.3,6.4495]
[1744358626590,3.2078,1547.7,1546.8,3.23432]
[1744358626791,4.50083,1547.7,1547.3,4.50109]
[1744358626992,0.00970905,1547.4,1547.3,3.2078]
[1744358628292,8.21750905,1547.4,1547.0,3.2078]
[1744358628497,1.29339,1547.3,1546.7,3.2078]
[1744358628795,2.13870905,1547.4,1547.2,1.29339]
[1744358629094,5.34650905,1547.4,1546.8,6.4495]
[1744358629394,1.29351,1547.1,1546.9,0.81255028]
[1744358629590,1.29338,1547.3,1547.0,4.50134]
[1744358629897,9.05e-06,1547.4,1547.3,1.29332]
[1744358630195,9.05e-06,1547.4,1547.3,3.56517296]
[1744358630395,3.23105,1548.4,1547.5,3.23289]
[1744358630396,0.64640001,1548.4,1547.5,3.23289]
[1744358630585,3.2078,1548.3,1547.9,3.2078]
[1744358630783,1.29273,1548.0,1547.7,4.50074]
[1744358630991,1.29276,1548.0,1547.8,1.2929]
[1744358631189,1.29273,1548.0,1547.9,0.81206159]
[1744358631606,1.29273,1548.0,1547.8,0.00970905]
[1744358631794,3.2812,1547.9,1547.8,1.30260905]
[1744358631994,3.2812,1547.9,1547.8,0.00970905]
[1744358632198,3.2812,1547.9,1547.8,0.81112552]
[1744358632397,9.57402,1547.9,1547.8,0.81112552]
[1744358632700,0.00970905,1548.1,1547.8,0.81112552]
[1744358632903,1.29275,1548.0,1547.8,2.10398552]
[1744358633195,5.932,1550.3,1547.8,5.81112552]
[1744358633397,1.29222,1548.7,1548.3,3.2078]
[1744358633589,1.29234,1548.5,1548.0,1.45767922]
[1744358633791,1.29223,1548.7,1548.4,3.2078]
[1744358633992,4.72545,1548.6,1548.3,1.29245]
[1744358634192,4.72545,1548.6,1548.5,3.2078]
[1744358634496,113.46043905,1548.6,1547.8,3.2078]
[1744358634801,1.29251,1548.3,1548.0,3.2078]
[1744358634995,1.29268,1548.1,1547.9,0.80119806]
[1744358635296,3.2078,1548.2,1547.9,0.80119806]
[1744358635297,1.29273,1548.0,1547.9,0.80119806]
[1744358635497,1.29282,1547.9,1547.8,3.2078]
[1744358635701,3.2078,1548.0,1547.6,44.0078]
[1744358635997,3.4691,1547.8,1547.6,40.8]
[1744358636193,4.76183,1548.0,1547.7,4.00911684]
[1744358636398,1.29288,1547.9,1547.7,4.00911684]
[1744358636705,3.4691,1547.8,1547.6,0.00970905]
[1744358636891,1.29298,1547.7,1547.6,0.00970905]
[1744358637094,1.29298,1547.7,1547.6,3.21750905]
[1744358639197,4.77178905,1547.8,1547.6,3.21750905]
[1744358639402,1.29298,1547.7,1547.6,3.21750905]
[1744358639707,4.72718,1547.7,1547.6,3.21750905]
[1744358640294,9.72718,1547.7,1547.6,3.21750905]
[1744358640497,9.72718,1547.7,1547.6,0.00970905]
[1744358641193,4.72718,1547.7,1547.6,0.00970905]
[1744358641393,4.72718,1547.7,1547.6,3.21750905]
[1744358641805,3.4342,1547.7,1547.6,3.21750905]
[1744358641992,0.00970905,1547.8,1547.6,3.21750905]
[1744358642396,0.00970905,1547.8,1547.7,4.65918]
[1744358642599,0.00970905,1547.8,1547.7,6.11788435]
[1744358642904,0.00970905,1547.8,1547.7,6.11786709]
[1744358643103,0.00970905,1547.8,1547.7,6.11786825]
[1744358643406,0.64640001,1548.5,1547.8,6.44002095]
[1744358643599,1.2924,1548.4,1548.3,3.2078]
[1744358643801,6.54938,1548.4,1547.9,6.574]
[1744358644104,3.3182,1548.4,1548.0,3.2078]
[1744358644296,1.29248,1548.3,1548.2,3.2078]
[1744358644496,1.29265,1548.1,1548.0,6.6203]
[1744358644693,3.15,1548.2,1548.0,6.6203]
[1744358644900,1.2926,1548.2,1548.0,7.913]
[1744358645101,1.29265,1548.1,1548.0,3.4125]
[1744358645496,1.29282,1547.9,1547.8,3.2078]
[1744358646813,1.2929,1547.8,1547.7,3.4125]
[1744358647108,1.29282,1547.9,1547.8,10.06390978]
[1744358647513,3.15,1548.0,1547.8,10.06390978]
[1744358647806,4.44273,1548.0,1547.9,3.3688]
[1744358648005,4.44273,1548.0,1547.8,8.74573978]
[1744358648006,1.29282,1547.9,1547.8,8.74573978]
[1744358648201,4.73072,1547.9,1547.8,8.74573978]
[1744358648405,9.73072,1547.9,1547.8,8.74573978]
[1744358648599,1.29282,1547.9,1547.8,11.95353978]
[1744358648801,6.29282,1547.9,1547.8,11.95353978]
[1744358649001,6.93922001,1547.9,1547.8,7.41892978]
[1744358649207,1.93922001,1547.9,1547.8,10.62672978]
[1744358649907,1.29282,1547.9,1547.8,6.5766]
[1744358650112,1.93922001,1547.9,1547.8,3.2078]
[1744358650306,1.29298,1547.7,1547.6,0.00970905]
[1744358650506,1.29287,1547.9,1547.6,0.00970905]
[1744358650706,1.29288,1547.9,1547.8,3.2078]
[1744358651107,3.3121,1548.0,1547.8,3.2078]
[1744358651413,1.29261,1548.2,1547.9,3.273]
[1744358651613,1.29265,1548.1,1548.0,3.2078]